fUSD/lending_fUSD_20250402
["ID","MTS","AMOUNT","RATE_DAILY","PERIOD"]
[356999871,1743556927095,162.380719,0.0003429,30]
[356999872,1743556927721,168.3888056,0.0003429,30]
[356999873,1743556928948,168.3888056,0.0003429,30]
[356999874,1743557043153,-150.0,0.00014899,2]
[356999875,1743557073892,512.09,0.00013699,2]
[356999876,1743557074243,512.09,0.00013699,2]
[356999877,1743557074662,512.09,0.00013699,2]
[356999878,1743557075633,512.09,0.00013699,2]
[356999879,1743557075994,512.09,0.00013699,2]
[356999880,1743557076386,512.09,0.00013699,2]
[356999881,1743557076769,512.09,0.00013699,2]
[356999882,1743557077180,512.09,0.00013699,2]
[356999883,1743557077623,512.09,0.00013699,2]
[356999884,1743557078004,512.09,0.00013699,2]
[356999885,1743557078400,512.09,0.00013699,2]
[356999886,1743557078779,512.09,0.00013699,2]
[356999887,1743557079299,512.09,0.00013699,2]
[356999888,1743557079539,512.09,0.00013699,2]
[356999889,1743557079907,512.09,0.00013699,2]
[356999890,1743557080307,512.09,0.00013699,2]
[356999891,1743557080651,512.09,0.00013699,2]
[356999892,1743557081020,512.09,0.00013699,2]
[356999893,1743557082545,512.09,0.00013699,2]
[356999894,1743557082919,512.22985103,0.00013699,2]
[356999895,1743557116425,947.99,0.00014374,2]
[356999897,1743557256420,26748.88792886,0.00023,15]
[356999900,1743557310508,-247.02557583,0.00014899,2]
[356999902,1743557310537,-500.0,0.00014899,2]
[356999904,1743557310565,-500.0,0.00014899,2]
[356999905,1743557310593,-362.66886926,0.00014899,2]
[356999907,1743557310621,-150.0,0.00014899,2]
[356999908,1743557310649,-773.22422615,0.000149,2]
[356999909,1743557310681,-773.22422615,0.000149,2]
[356999910,1743557310709,-5253.67912978,0.000149,2]
[356999911,1743557310755,-2203.93677881,0.000149,2]
[356999921,1743557427181,161.19,0.00013699,2]
[356999942,1743557432154,-2554.41035375,0.000149,2]
[356999943,1743557432166,-2046.83155455,0.000149,2]
[356999944,1743557432415,-1733.11218122,0.000149,2]
[356999945,1743557432426,-404.6878,0.000149,2]
[356999946,1743557432436,-911.0111,0.000149,2]
[356999947,1743557432446,-1769.9121,0.000149,2]
[356999948,1743557432456,-605.7979,0.000149,2]
[356999949,1743557432466,-742.8416,0.000149,2]
[356999950,1743557432476,-21116.7802,0.000149,2]
[356999951,1743557432486,-169.3661,0.000149,2]
[356999952,1743557432495,-1689.4067,0.000149,2]
[356999953,1743557432505,-5382.054,0.000149,2]
[356999954,1743557432515,-152.09044075,0.000149,2]
[356999955,1743557432525,-1376.54392993,0.000149,2]
[356999956,1743557432535,-261.04627346,0.000149,2]
[356999957,1743557432546,-8934.98685245,0.000149,2]
[356999958,1743557432555,-150.0,0.00014922,2]
[356999959,1743557432565,-505.15119823,0.00014973,2]
[356999960,1743557432575,-304.91395347,0.00014973,2]
[356999961,1743557432585,-501.57357659,0.00014973,2]
[356999962,1743557432595,-500.0,0.00014973,2]
[356999963,1743557432607,-500.0,0.00014973,2]
[356999964,1743557432617,-500.0,0.00014973,2]
[356999965,1743557432626,-300.97698816,0.00014973,2]
[356999966,1743557432636,-152.25771433,0.00014973,2]
[356999967,1743557432646,-1000.0,0.00014999,2]
[356999968,1743557432656,-142016.35390677,0.00015,2]
[356999969,1743557432666,-247959.52401022,0.00015,2]
[356999970,1743557432678,-712.24024169,0.00015,2]
[356999971,1743557432689,-361.56297009,0.00015,2]
[356999972,1743557432701,-585.49977958,0.00015,2]
[356999973,1743557432721,-384.54,0.00015,2]
[356999974,1743557437982,-2470.17698868,0.000149,2]
[356999975,1743557437993,-126395.43143411,0.00015,2]
[356999976,1743557438239,-560.92,0.00015,2]
[356999985,1743557440460,-2983033.6932529,0.00015,2]
[356999986,1743557440469,-1676470.08888302,0.00015,2]
[356999987,1743557440646,-0.00542839,0.00015,2]
[356999988,1743557440809,-421.6,0.00015,2]
[357000038,1743557910690,552.817,0.000147,2]
[357000041,1743557994366,1290.23842271,0.00034324,30]
[357000042,1743558193765,964.63,0.00013858,2]
[357000045,1743558344784,154.57,0.00013021,2]
[357000047,1743558510969,-300.0,0.00014899,2]
[357000048,1743558510998,-933.6085,0.000149,2]
[357000050,1743558511026,-811.78755634,0.000149,2]
[357000052,1743558587823,164.05,0.00013699,2]
[357000057,1743558632195,-68.06114366,0.000149,2]
[357000058,1743558632204,-831.0453,0.000149,2]
[357000059,1743558632215,-5984.7529,0.000149,2]
[357000060,1743558632224,-188.0,0.00014959,2]
[357000061,1743558632234,-500.0,0.00014964,2]
[357000062,1743558632245,-500.0,0.00014964,2]
[357000063,1743558632254,-500.0,0.00014964,2]
[357000064,1743558632264,-365.88648514,0.00014964,2]
[357000065,1743558632274,-2223.15928983,0.00014969,2]
[357000066,1743558632283,-612.53319651,0.00014973,2]
[357000067,1743558632292,-615.0,0.00015,2]
[357000068,1743558632301,-14092.91419253,0.00015,2]
[357000069,1743558632313,-558.8778189,0.00015,2]
[357000070,1743558632325,-13771.25653129,0.00015,2]
[357000071,1743558632336,-2205.93110678,0.00015,2]
[357000072,1743558632348,-547.14301844,0.00015,2]
[357000073,1743558632514,-300.0,0.00015,2]
[357000074,1743558632525,-1925.09129062,0.00015,2]
[357000344,1743558638377,-7766.9600003,0.00015,2]
[357000374,1743558640374,-448.12608553,0.00015,2]
[357000375,1743558640385,-108.87391447,0.00015,2]
[357000376,1743558640395,-809.01873279,0.00015,2]
[357000377,1743558640482,-12466.0839861,0.00015,2]
[357000378,1743558640536,-701.98658998,0.00015,2]
[357000379,1743558640590,-3480577.91050927,0.00015,2]
[357000380,1743558640600,-154.70275513,0.00015169,2]
[357000381,1743558640610,-174.95393045,0.00015269,2]
[357000382,1743558640620,-250.0,0.00015442,2]
[357000383,1743558640629,-58153.06319494,0.00015469,2]
[357000384,1743558640639,-280.24,0.00015621,2]
[357000385,1743558640648,-7988.87,0.00015621,2]
[357000386,1743558640658,-999.99,0.00015621,2]
[357000387,1743558640667,-779.36,0.00015621,2]
[357000388,1743558640676,-150.99,0.00015621,2]
[357000389,1743558640686,-218.09,0.00015621,2]
[357000390,1743558640695,-150.99,0.00015621,2]
[357000391,1743558640705,-9999.99,0.00015621,2]
[357000392,1743558640714,-9999.99,0.00015621,2]
[357000393,1743558640724,-1122.32,0.00015621,2]
[357000394,1743558640734,-780.9,0.00015802,2]
[357000395,1743558640744,-1000.0,0.00015813,2]
[357000396,1743558640753,-2014.78,0.00015843,2]
[357000397,1743558640763,-200.0,0.00015858,2]
[357000398,1743558640772,-150.0,0.00015861,7]
[357000399,1743558640782,-200.0,0.00015876,2]
[357000400,1743558640791,-308.1,0.00015879,2]
[357000401,1743558640807,-195.01,0.00015882,2]
[357000402,1743558640816,-5296.53,0.00015912,2]
[357000403,1743558640826,-500.0,0.00015919,2]
[357000404,1743558640835,-150.0,0.0001594,2]
[357000405,1743558640846,-250.0,0.00016057,2]
[357000406,1743558640855,-500.0,0.0001607,2]
[357000407,1743558640864,-9999.99,0.00016116,2]
[357000408,1743558640874,-964.63,0.00016122,2]
[357000409,1743558640884,-1036.11,0.00016141,2]
[357000410,1743558640894,-239.80935884,0.00016165,2]
[357000411,1743558640904,-150.66,0.00016196,2]
[357000412,1743558640914,-712.91,0.00016276,2]
[357000413,1743558640923,-172.98,0.00016276,2]
[357000414,1743558640933,-23900.0,0.00016311,2]
[357000415,1743558640944,-200.0,0.0001634,2]
[357000416,1743558640959,-1152.9271589,0.0001637,2]
[357000417,1743558640971,-150.0,0.00016389,2]
[357000418,1743558640982,-150.0,0.00016389,2]
[357000419,1743558640992,-150.0,0.0001639,2]
[357000420,1743558641004,-202.78,0.00016438,2]
[357000421,1743558641014,-184.18,0.00016441,2]
[357000422,1743558641024,-188.2,0.00016712,2]
[357000423,1743558641035,-10212.95,0.00016922,2]
[357000424,1743558641045,-300.0,0.00017172,2]
[357000425,1743558641055,-166.66,0.00017305,2]
[357000426,1743558641065,-2223.15928976,0.00017417,2]
[357000427,1743558641075,-1000.0,0.00017789,2]
[357000428,1743558641084,-166.66,0.00017876,2]
[357000429,1743558641095,-1143.07987145,0.00018,2]
[357000430,1743558641104,-1709.44926954,0.000181,2]
[357000431,1743558641114,-164.05,0.00018265,2]
[357000432,1743558641124,-964.63,0.00018386,2]
[357000433,1743558641134,-871.3180173,0.00018434,2]
[357000434,1743558641143,-166.66,0.00018447,2]
[357000435,1743558641153,-300.0,0.00018542,2]
[357000436,1743558641163,-500.0,0.00018973,2]
[357000437,1743558641172,-515.24298404,0.00018973,2]
[357000438,1743558641181,-327.49571783,0.00018973,2]
[357000439,1743558641190,-500.0,0.00018973,2]
[357000440,1743558641200,-172.98,0.00018988,2]
[357000441,1743558641210,-33451.85246488,0.00019,2]
[357000442,1743558641220,-670.51212847,0.00019,2]
[357000443,1743558641229,-205.04210642,0.00019,2]
[357000444,1743558641239,-77973.94205685,0.00019,2]
[357000445,1743558641249,-166.66,0.00019018,2]
[357000446,1743558641259,-1000.0,0.0001902,2]
[357000447,1743558641268,-166.66,0.00019589,2]
[357000448,1743558641278,-3308.10207128,0.0001961,2]
[357000449,1743558641288,-1000.0,0.00019766,2]
[357000450,1743558641297,-2223.15928976,0.00019865,2]
[357000451,1743558641307,-3020.59428636,0.0001987,2]
[357000452,1743558641317,-500.0,0.00019973,2]
[357000453,1743558641327,-66750.91568277,0.0002,2]
[357000454,1743558641336,-6281.9006532,0.0002,2]
[357000455,1743558641346,-40913.67966908,0.0002,4]
[357000456,1743558641356,-85379.52156974,0.0002,4]
[357000457,1743558641365,-151.65,0.0002,2]
[357000458,1743558641375,-151.65,0.0002,2]
[357000459,1743558641384,-151.65,0.0002,2]
[357000460,1743558641394,-151.65,0.0002,2]
[357000461,1743558641404,-151.65,0.0002,2]
[357000462,1743558641414,-151.65,0.0002,2]
[357000463,1743558641423,-151.65,0.0002,2]
[357000464,1743558641433,-151.65,0.0002,2]
[357000465,1743558641443,-151.65,0.0002,2]
[357000466,1743558641453,-151.65,0.0002,2]
[357000467,1743558641463,-151.65,0.0002,2]
[357000468,1743558641472,-151.65,0.0002,2]
[357000469,1743558641482,-151.65,0.0002,2]
[357000470,1743558641491,-151.65,0.0002,2]
[357000471,1743558641501,-151.65,0.0002,2]
[357000472,1743558641510,-151.65,0.0002,2]
[357000473,1743558641520,-151.65,0.0002,2]
[357000474,1743558641529,-151.65,0.0002,2]
[357000475,1743558641539,-151.65,0.0002,2]
[357000476,1743558641548,-151.65,0.0002,2]
[357000477,1743558641558,-151.65,0.0002,2]
[357000478,1743558641567,-151.65,0.0002,2]
[357000479,1743558641577,-151.65,0.0002,2]
[357000480,1743558641587,-151.65,0.0002,2]
[357000481,1743558641596,-151.65,0.0002,2]
[357000482,1743558641606,-151.65,0.0002,2]
[357000483,1743558641616,-151.65,0.0002,2]
[357000484,1743558641625,-151.65,0.0002,2]
[357000485,1743558641635,-151.65,0.0002,2]
[357000486,1743558641645,-151.65,0.0002,2]
[357000487,1743558641654,-2000.0,0.0002011,4]
[357000488,1743558641664,-166.66,0.00020161,2]
[357000489,1743558641673,-466.92440737,0.00020576,2]
[357000490,1743558641682,-500.0,0.00020595,2]
[357000491,1743558641692,-964.63,0.0002065,2]
[357000492,1743558641702,-1374.4954909,0.00020972,2]
[357000493,1743558641711,-6397.1349304,0.00020986,2]
[357000494,1743558641721,-65350.2018627,0.00021,2]
[357000495,1743558641730,-172.98,0.00021701,2]
[357000496,1743558641740,-1000.0,0.00021742,2]
[357000497,1743558641750,-780.9,0.00022123,2]
[357000498,1743558641759,-2223.15928976,0.00022313,2]
[357000499,1743558641768,-382.0,0.00022329,2]
[357000500,1743558641777,-151.65,0.00022449,2]
[357000501,1743558641786,-2041.0,0.00022459,2]
[357000502,1743558641795,-1284.0,0.00022459,2]
[357000503,1743558641808,-770.998,0.00022459,2]
[357000504,1743558641817,-573.0,0.00022459,2]
[357000505,1743558641826,-1365.0,0.00022459,2]
[357000506,1743558641834,-1275.0,0.00022459,2]
[357000507,1743558641844,-789.0,0.00022459,2]
[357000508,1743558641852,-543.0,0.00022459,2]
[357000509,1743558641861,-909.0,0.00022459,2]
[357000510,1743558641870,-4094.0,0.00022459,2]
[357000511,1743558641879,-1434.0,0.00022459,2]
[357000512,1743558641889,-250.0,0.00022459,2]
[357000513,1743558641898,-236.0,0.00022459,2]
[357000514,1743558641908,-3950.0,0.00022459,2]
[357000515,1743558641918,-1017.0,0.00022459,2]
[357000516,1743558641927,-150.674,0.00022459,2]
[357000517,1743558641937,-166.179,0.00022459,2]
[357000518,1743558641947,-166.767,0.00022459,2]
[357000519,1743558641957,-185.523,0.00022459,2]
[357000520,1743558641966,-188.2,0.00022603,2]
[357000521,1743558641976,-164.05,0.00022831,2]
[357000522,1743558641986,-964.63,0.00022914,2]
[357000523,1743558641996,-1000.0,0.00022932,2]
[357000524,1743558642006,-170.898,0.00022959,2]
[357000525,1743558642015,-155.989,0.00022959,2]
[357000526,1743558642025,-939.85639379,0.00023336,2]
[357000527,1743558642173,-1000.0,0.00023719,2]
[357000528,1743558642183,-195.01,0.00023823,2]
[357000529,1743558642193,-621.69,0.00023836,2]
[357000530,1743558642203,-172.98,0.00024414,2]
[357000531,1743558642212,-1005.34020602,0.00024452,2]
[357000532,1743558642222,-823.6451562,0.00024452,2]
[357000533,1743558642232,-1000.0,0.00024658,2]
[357000534,1743558642242,-2223.15928976,0.00024761,2]
[357000535,1743558642252,-81843.6560018,0.000248,3]
[357000536,1743558642262,-151.65,0.0002489,2]
[357000537,1743558642272,-151.65,0.0002489,2]
[357000538,1743558642281,-151.65,0.0002489,2]
[357000539,1743558642297,-250128.008959,0.000249,3]
[357000540,1743558642311,-154.70275511,0.00024913,2]
[357000541,1743558642322,-964.63,0.00025177,2]
[357000542,1743558642332,-202.0,0.000253,10]
[357000543,1743558642343,-1000.0,0.00025452,2]
[357000544,1743558642354,-2041.0,0.00025459,2]
[357000545,1743558642364,-1284.0,0.00025459,2]
[357000546,1743558642375,-643.0,0.00025459,2]
[357000547,1743558642385,-573.0,0.00025459,2]
[357000548,1743558642396,-1365.0,0.00025459,2]
[357000549,1743558642406,-1275.0,0.00025459,2]
[357000550,1743558642417,-789.0,0.00025459,2]
[357000551,1743558642427,-543.0,0.00025459,2]
[357000552,1743558642437,-909.0,0.00025459,2]
[357000553,1743558642447,-4094.0,0.00025459,2]
[357000554,1743558642457,-1434.0,0.00025459,2]
[357000555,1743558642467,-150.0,0.00025459,2]
[357000556,1743558642477,-3950.0,0.00025459,2]
[357000557,1743558642487,-1017.0,0.00025459,2]
[357000558,1743558642497,-150.0,0.00025459,2]
[357000559,1743558642506,-151.0,0.00025459,2]
[357000560,1743558642517,-151.0,0.00025459,2]
[357000561,1743558642527,-150.0,0.00025459,2]
[357000562,1743558642538,-3052.17509143,0.00026,2]
[357000563,1743558642548,-12241.37791616,0.000264,2]
[357000564,1743558642559,-850.0,0.000265,2]
[357000565,1743558642570,-188.29,0.00026849,2]
[357000566,1743558642580,-463.3,0.00026849,2]
[357000567,1743558642589,-250.0,0.00027,2]
[357000568,1743558642599,-250.0,0.00027,2]
[357000569,1743558642610,-994.41089163,0.00027,2]
[357000570,1743558642621,-3529.3,0.00027123,2]
[357000571,1743558642635,-2223.15928976,0.00027208,2]
[357000572,1743558642646,-496.97,0.00027397,2]
[357000573,1743558642659,-2099.55,0.00027397,2]
[357000574,1743558642671,-164.05,0.00027397,2]
[357000575,1743558642682,-391.0,0.000274,2]
[357000576,1743558642692,-964.63,0.00027441,2]
[357000577,1743558642704,-193.11830221,0.000275,2]
[357000578,1743558642713,-2000.0,0.00027583,4]
[357000579,1743558642723,-125794.0,0.00028,2]
[357000580,1743558642734,-151.65,0.0002819,2]
[357000581,1743558642744,-2497.3436199,0.00028243,2]
[357000582,1743558642755,-2041.0,0.00028459,2]
[357000583,1743558642766,-1284.0,0.00028459,2]
[357000584,1743558642776,-643.0,0.00028459,2]
[357000585,1743558642786,-573.0,0.00028459,2]
[357000586,1743558642798,-1365.0,0.00028459,2]
[357000587,1743558642810,-1275.0,0.00028459,2]
[357000588,1743558642819,-789.0,0.00028459,2]
[357000589,1743558642829,-543.0,0.00028459,2]
[357000590,1743558642841,-909.0,0.00028459,2]
[357000591,1743558642851,-4094.0,0.00028459,2]
[357000592,1743558642860,-1434.0,0.00028459,2]
[357000593,1743558642871,-3950.0,0.00028459,2]
[357000594,1743558642883,-1017.0,0.00028459,2]
[357000595,1743558642893,-151.0,0.00028459,2]
[357000596,1743558642903,-188.2,0.00028493,2]
[357000597,1743558642912,-2099.55,0.00028767,2]
[357000598,1743558642922,-300.0,0.00029,2]
[357000599,1743558642932,-5554.0,0.000291,3]
[357000600,1743558642943,-2223.15928976,0.00029656,2]
[357000601,1743558642952,-964.63,0.00029705,2]
[357000602,1743558642962,-413.0417903,0.0003,2]
[357000603,1743558642972,-903.26770095,0.0003,15]
[357000604,1743558642981,-301.20099379,0.0003,2]
[357000605,1743558642991,-2099.55,0.00030137,2]
[357000606,1743558643001,-5554.0,0.000302,5]
[357000607,1743558643011,-1870.66292776,0.000306,2]
[357000608,1743558643021,-350.0,0.00031,2]
[357000609,1743558643030,-151.65,0.00031449,2]
[357000610,1743558643040,-2041.0,0.00031459,2]
[357000611,1743558643050,-1284.0,0.00031459,2]
[357000612,1743558643059,-643.0,0.00031459,2]
[357000613,1743558643068,-573.0,0.00031459,2]
[357000614,1743558643078,-1365.0,0.00031459,2]
[357000615,1743558643087,-1275.0,0.00031459,2]
[357000616,1743558643096,-789.0,0.00031459,2]
[357000617,1743558643106,-543.0,0.00031459,2]
[357000618,1743558643115,-909.0,0.00031459,2]
[357000619,1743558643125,-4094.0,0.00031459,2]
[357000620,1743558643134,-1434.0,0.00031459,2]
[357000621,1743558643144,-2476.9375432,0.00031459,2]
[357000629,1743558643245,-1473.0624568,0.00031459,2]
[357000630,1743558643255,-1017.0,0.00031459,2]
[357000631,1743558643264,-151.0,0.00031459,2]
[357000632,1743558643273,-2099.55,0.00031507,2]
[357000633,1743558643282,-164.05,0.00031964,2]
[357000634,1743558643294,-964.63,0.00031969,2]
[357000635,1743558643304,-3415.0,0.00032,7]
[357000636,1743558643314,-2223.15928976,0.00032104,2]
[357000637,1743558643325,-188.29,0.00032646,2]
[357000638,1743558643335,-463.3,0.00032646,2]
[357000639,1743558643345,-2099.55,0.00032877,2]
[357000640,1743558643355,-327.21938221,0.000329,2]
[357000641,1743558643365,-391.32264698,0.000329,2]
[357000642,1743558643374,-172.2,0.00032932,120]
[357000643,1743558643384,-400.0,0.00033,2]
[357000644,1743558643394,-200.0,0.00033151,2]
[357000645,1743558643404,-933.76680077,0.00033326,5]
[357000646,1743558643414,-2000.0,0.000335,2]
[357000647,1743558643424,-1047.77320168,0.00033604,5]
[357000648,1743558643434,-1074.38879207,0.00033604,5]
[357000649,1743558643444,-1018.04496945,0.00033635,5]
[357000650,1743558643454,-986.8,0.000338,2]
[357000651,1743558643464,-59633.69797951,0.0003399,2]
[357000652,1743558643474,-199.0,0.00034,14]
[357000653,1743558643483,-198.21,0.00034,30]
[357000654,1743558643493,-203.512685,0.0003406,2]
[357000655,1743558643503,-150.0,0.00034088,2]
[357000656,1743558643512,-370.0,0.000341,2]
[357000657,1743558643522,-298.0,0.000341,2]
[357000658,1743558643532,-234.0,0.000341,2]
[357000659,1743558643541,-150.0,0.00034113,2]
[357000660,1743558643551,-150.0,0.00034192,2]
[357000661,1743558643561,-150.0,0.00034199,2]
[357000662,1743558643570,-964.63,0.00034233,2]
[357000663,1743558643579,-685.026907,0.0003429,2]
[357000664,1743558643589,-200.0,0.0003429,2]
[357000665,1743558643599,-159.57,0.00034299,30]
[357000666,1743558643609,-501.45,0.000343,2]
[357000667,1743558643618,-150.0,0.000343,2]
[357000668,1743558643627,-150.0,0.00034308,2]
[357000669,1743558643637,-196.87497347,0.00034317,2]
[357000670,1743558643647,-150.0,0.00034324,2]
[357000671,1743558643656,-200.0,0.00034324,2]
[357000672,1743558643666,-200.0,0.00034324,2]
[357000673,1743558643675,-5104.41195819,0.00034326,7]
[357000674,1743558643685,-9747.53384431,0.00034326,7]
[357000675,1743558643694,-3699.12851665,0.00034326,2]
[357000676,1743558643704,-3219.48535692,0.00034326,2]
[357000677,1743558643714,-172.67499216,0.00034326,2]
[357000678,1743558643723,-2000.0,0.00034326,2]
[357000679,1743558643733,-151.65,0.00034449,2]
[357000681,1743558643742,-2041.0,0.00034459,2]
[357000682,1743558643752,-1284.0,0.00034459,2]
[357000683,1743558643761,-643.0,0.00034459,2]
[357000684,1743558643771,-573.0,0.00034459,2]
[357000685,1743558643781,-1365.0,0.00034459,2]
[357000686,1743558643791,-1275.0,0.00034459,2]
[357000687,1743558643803,-789.0,0.00034459,2]
[357000688,1743558643813,-543.0,0.00034459,2]
[357000689,1743558643823,-909.0,0.00034459,2]
[357000690,1743558643833,-4094.0,0.00034459,2]
[357000691,1743558643845,-1434.0,0.00034459,2]
[357000692,1743558643855,-3950.0,0.00034459,2]
[357000693,1743558643864,-1017.0,0.00034459,2]
[357000694,1743558643875,-151.0,0.00034459,2]
[357000695,1743558643885,-150.0,0.00034548,10]
[357000696,1743558643894,-2223.15928976,0.00034552,2]
[357000697,1743558643903,-200.0,0.00034633,2]
[357000698,1743558643912,-154.70275511,0.00034658,2]
[357000699,1743558643921,-200.0,0.00034667,2]
[357000700,1743558643930,-200.0,0.00034667,2]
[357000701,1743558643939,-200.0,0.00034979,2]
[357000702,1743558643948,-450.0,0.00035,2]
[357000703,1743558643958,-3138.35138088,0.00035,2]
[357000704,1743558643967,-170.88,0.00035,2]
[357000705,1743558643977,-200.0,0.00035014,2]
[357000706,1743558643986,-2000.0,0.00035055,4]
[357000707,1743558643995,-621.69,0.00035068,2]
[357000708,1743558644005,-174.95393045,0.00035299,2]
[357000709,1743558644014,-200.0,0.00035329,2]
[357000710,1743558644023,-200.0,0.00035364,2]
[357000711,1743558644032,-1500.0,0.00035471,5]
[357000712,1743558644041,-150.0,0.00035616,2]
[357000713,1743558644051,-200.0,0.00035682,2]
[357000714,1743558644060,-200.0,0.00035718,2]
[357000715,1743558644069,-2000.0,0.000362,2]
[357000716,1743558644079,-964.63,0.00036497,2]
[357000717,1743558644089,-377.11,0.000365,7]
[357000718,1743558644098,-164.05,0.0003653,2]
[357000719,1743558644107,-150.0,0.00036554,2]
[357000720,1743558644116,-151.65,0.0003699,2]
[357000721,1743558644126,-500.0,0.00037,2]
[357000722,1743558644135,-85833.66289087,0.00037,2]
[357000723,1743558644147,-1328.34595672,0.00037,2]
[357000724,1743558644208,-4038.54725052,0.00015069,2]
[357000731,1743558701049,-150.0,0.000149,2]
[357000732,1743558812602,-426.003,0.000149,2]
[357000733,1743558842484,-151.28,0.00014899,2]
[357000734,1743558993479,197.65099353,0.000148,2]
[357000736,1743559023025,-218.39277039,0.00014899,2]
[357000737,1743559372789,569.0,0.00034295,120]
[357000738,1743559582953,231.5737219,0.00032,120]
[357000739,1743559623634,172.02,0.00013699,2]
[357000744,1743559792913,-150.0,0.000149,2]
[357000745,1743559792941,-697.2554,0.000149,2]
[357000746,1743559792971,-1804.99699071,0.000149,2]
[357000752,1743559832358,-352.00300929,0.000149,2]
[357000753,1743559832367,-150.0,0.00015229,2]
[357000754,1743559832377,-200.0,0.00016276,2]
[357000755,1743559832387,-150.0,0.0001639,2]
[357000756,1743559832397,-1469.091,0.00016612,2]
[357000757,1743559832415,-188.2,0.00016712,2]
[357000758,1743559832427,-250.92485326,0.00019688,2]
[357000759,1743559832437,-151.0,0.0002067,2]
[357000760,1743559832446,-3950.0,0.0002067,2]
[357000761,1743559832457,-1017.0,0.0002067,2]
[357000762,1743559832467,-250.0,0.00022459,2]
[357000763,1743559832481,-151.0,0.0002367,2]
[357000764,1743559832492,-3950.0,0.0002367,2]
[357000765,1743559832501,-1017.0,0.0002367,2]
[357000766,1743559832511,-154.228,0.00024659,2]
[357000767,1743559832521,-282.037,0.00024659,2]
[357000768,1743559832531,-643.0,0.00024659,2]
[357000769,1743559832540,-1284.0,0.00024659,2]
[357000770,1743559832549,-2041.0,0.00024659,2]
[357000771,1743559832559,-1365.0,0.00024659,2]
[357000772,1743559832568,-573.0,0.00024659,2]
[357000773,1743559832577,-789.0,0.00024659,2]
[357000774,1743559832588,-1275.0,0.00024659,2]
[357000775,1743559832597,-909.0,0.00024659,2]
[357000776,1743559832608,-4094.0,0.00024659,2]
[357000777,1743559832617,-1434.0,0.00024659,2]
[357000778,1743559832628,-543.0,0.00024659,2]
[357000779,1743559832637,-1118.0,0.00024659,2]
[357000780,1743559832647,-7376.29,0.00024659,2]
[357000781,1743559832656,-179.6,0.00024659,2]
[357000782,1743559832666,-2288.75,0.00024659,2]
[357000783,1743559832676,-247.27,0.00024659,2]
[357000784,1743559832685,-999.99,0.00024659,2]
[357000785,1743559832695,-150.99,0.00024659,2]
[357000786,1743559832704,-150.0,0.00025459,2]
[357000787,1743559832715,-151.0,0.0002667,2]
[357000788,1743559832727,-3950.0,0.0002667,2]
[357000789,1743559832737,-1017.0,0.0002667,2]
[357000790,1743559832747,-169.46,0.00026849,2]
[357000791,1743559832757,-250.0,0.00027,2]
[357000792,1743559832767,-971.0,0.000274,2]
[357000793,1743559832777,-327.38165047,0.000274,2]
[357000794,1743559832787,-643.0,0.00027659,2]
[357000795,1743559832796,-1284.0,0.00027659,2]